[Event "2026 Biel Blitz Open"]
[Site "Biel, CH"]
[Date "2026.07.19"]
[Round "5"]
[White "Mikavica, Dragoljub"]
[Black "Hajduk, Tomasz"]
[Result "0-1"]
[Board "39"]
[TimeControl "180+2"]
[WhiteFideId "1308726"]
[BlackFideId "21811415"]
[WhiteElo "1983"]
[BlackElo "1791"]
[WhiteClock "0:00:10"]
[BlackClock "0:00:41"]
[Variant "Standard"]
[EndDate "2026.07.19"]
[EndTime "13:12:56"]

1. c4 {[%clk 0:03:02]}  c5 {[%clk 0:03:04]} 2. e4 {[%clk 0:03:02]}  e5 {[%clk 0:03:04]} 3. Nf3 {[%clk 0:03:03]}  Nc6 {[%clk 0:03:05]}
4. Nc3 {[%clk 0:03:03]}  Nf6 {[%clk 0:03:05]} 5. d3 {[%clk 0:03:04]}  d6 {[%clk 0:03:07]} 6. h3 {[%clk 0:03:04]}  Be6 {[%clk 0:03:07]}
7. Bg5 {[%clk 0:03:00]}  Be7 {[%clk 0:03:08]} 8. Bxf6 {[%clk 0:03:01]}  Bxf6 {[%clk 0:03:09]} 9. Nd5 {[%clk 0:03:02]}  Bxd5 {[%clk 0:03:07]}
10. cxd5 {[%clk 0:02:58]}  Qa5+ {[%clk 0:03:05]} 11. Qd2 {[%clk 0:02:36]}  Nb4 {[%clk 0:02:53]} 12. Ke2 {[%clk 0:01:54]}  Bd8 {[%clk 0:02:45]}
13. a3 {[%clk 0:01:45]}  Na6 {[%clk 0:02:46]} 14. Qc3 {[%clk 0:01:16]}  Qxc3 {[%clk 0:02:25]} 15. bxc3 {[%clk 0:01:17]}  Ba5 {[%clk 0:02:26]}
16. Rc1 {[%clk 0:01:13]}  c4 {[%clk 0:02:25]} 17. d4 {[%clk 0:01:04]}  exd4 {[%clk 0:02:19]} 18. Nxd4 {[%clk 0:01:04]}  Nc5 {[%clk 0:02:18]}
19. Ke3 {[%clk 0:00:57]}  Nb3 {[%clk 0:01:33]} 20. Nxb3 {[%clk 0:00:48]}  cxb3 {[%clk 0:01:34]} 21. Rb1 {[%clk 0:00:37]}  Rc8 {[%clk 0:01:33]}
22. c4 {[%clk 0:00:35]}  Bb6+ {[%clk 0:01:31]} 23. Kd3 {[%clk 0:00:33]}  Bxf2 {[%clk 0:01:29]} 24. Rxb3 {[%clk 0:00:34]}  Bb6 {[%clk 0:01:29]}
25. Be2 {[%clk 0:00:31]}  Ke7 {[%clk 0:01:28]} 26. Bg4 {[%clk 0:00:32]}  Rc5 {[%clk 0:01:28]} 27. Re1 {[%clk 0:00:27]}  h5 {[%clk 0:01:29]}
28. Bf3 {[%clk 0:00:26]}  g6 {[%clk 0:01:28]} 29. e5 {[%clk 0:00:26]}  Rhc8 {[%clk 0:01:25]} 30. exd6+ {[%clk 0:00:20]}  Kxd6 {[%clk 0:01:26]}
31. Rc3 {[%clk 0:00:16]}  Ba5 {[%clk 0:01:27]} 32. Rc2 {[%clk 0:00:17]}  Bxe1 {[%clk 0:01:28]} 33. g4 {[%clk 0:00:08]}  hxg4 {[%clk 0:01:26]}
34. Bxg4 {[%clk 0:00:09]}  Re8 {[%clk 0:01:26]} 35. Rb2 {[%clk 0:00:05]}  b6 {[%clk 0:01:26]} 36. Rg2 {[%clk 0:00:06]}  Bh4 {[%clk 0:01:18]}
37. Rg1 {[%clk 0:00:04]}  Bf2 {[%clk 0:01:05]} 38. Rf1 {[%clk 0:00:03]}  f5 {[%clk 0:00:44]} 39. Rxf2 {[%clk 0:00:04]}  fxg4 {[%clk 0:00:42]}
40. Rf6+ {[%clk 0:00:05]}  Ke5 {[%clk 0:00:45]} 41. Rxg6 {[%clk 0:00:05]}  gxh3 {[%clk 0:00:46]} 42. Rg5+ {[%clk 0:00:05]}  Kf4 {[%clk 0:00:46]}
43. Rg7 {[%clk 0:00:06]}  Re3+ {[%clk 0:00:46]} 44. Kd2 {[%clk 0:00:08]}  Rxa3 {[%clk 0:00:45]} 45. d6 {[%clk 0:00:07]}  Rxc4 {[%clk 0:00:44]}
46. d7 {[%clk 0:00:08]}  Rd4+ {[%clk 0:00:41]} 47. Kc2 {[%clk 0:00:09]}  Rad3 {[%clk 0:00:41]} 48. Rf7+ {[%clk 0:00:09]}  Kg3 {[%clk 0:00:42]}
49. Rg7+ {[%clk 0:00:09]}  Kh2 {[%clk 0:00:42]} 50. Rg4 {[%clk 0:00:10]}  Rxd7 {[%clk 0:00:41]} 0-1

[Event "2026 Biel Blitz Open"]
[Site "Biel, CH"]
[Date "2026.07.19"]
[Round "5"]
[White "Trubini, Timon"]
[Black "Haugner, Jan"]
[Result "1/2-1/2"]
[Board "40"]
[TimeControl "180+2"]
[WhiteFideId "1347799"]
[BlackFideId "24655244"]
[WhiteElo "1788"]
[BlackElo "1976"]
[WhiteClock "0:00:15"]
[BlackClock "0:00:09"]
[Variant "Standard"]
[EndDate "2026.07.19"]
[EndTime "13:10:15"]

1. e4 {[%clk 0:03:03]}  c5 {[%clk 0:03:04]} 2. Nf3 {[%clk 0:03:04]}  d6 {[%clk 0:03:06]} 3. d4 {[%clk 0:03:05]}  cxd4 {[%clk 0:03:07]}
4. Nxd4 {[%clk 0:03:06]}  Nf6 {[%clk 0:03:08]} 5. Nc3 {[%clk 0:03:08]}  Bd7 {[%clk 0:03:10]} 6. Bc4 {[%clk 0:03:06]}  Nc6 {[%clk 0:03:04]}
7. O-O {[%clk 0:03:03]}  g6 {[%clk 0:03:04]} 8. Bb3 {[%clk 0:02:52]}  Bg7 {[%clk 0:03:02]} 9. Be3 {[%clk 0:02:52]}  Ng4 {[%clk 0:02:28]}
10. Nxc6 {[%clk 0:02:50]}  Nxe3 {[%clk 0:02:07]} 11. Bxf7+ {[%clk 0:02:41]}  Kf8 {[%clk 0:02:09]} 12. Qf3 {[%clk 0:02:20]}  Bxc6 {[%clk 0:02:04]}
13. fxe3 {[%clk 0:02:09]}  Bf6 {[%clk 0:02:00]} 14. Bb3 {[%clk 0:01:56]}  Kg7 {[%clk 0:01:51]} 15. Qh3 {[%clk 0:01:37]}  Qb6 {[%clk 0:01:22]}
16. Qe6 {[%clk 0:01:18]}  Qxe3+ {[%clk 0:01:16]} 17. Kh1 {[%clk 0:01:19]}  Rhf8 {[%clk 0:01:16]} 18. Rae1 {[%clk 0:01:07]}  Qg5 {[%clk 0:01:07]}
19. Nd5 {[%clk 0:01:02]}  Bxd5 {[%clk 0:01:01]} 20. Bxd5 {[%clk 0:01:00]}  Qe5 {[%clk 0:00:48]} 21. c3 {[%clk 0:00:57]}  Qxe6 {[%clk 0:00:49]}
22. Bxe6 {[%clk 0:00:58]}  Be5 {[%clk 0:00:44]} 23. Bd5 {[%clk 0:00:59]}  Rab8 {[%clk 0:00:40]} 24. Rxf8 {[%clk 0:00:59]}  Rxf8 {[%clk 0:00:41]}
25. Kg1 {[%clk 0:00:55]}  b6 {[%clk 0:00:43]} 26. Rf1 {[%clk 0:00:49]}  Bf4 {[%clk 0:00:40]} 27. g3 {[%clk 0:00:44]}  Be3+ {[%clk 0:00:41]}
28. Kg2 {[%clk 0:00:46]}  Rxf1 {[%clk 0:00:38]} 29. Kxf1 {[%clk 0:00:47]}  Bc1 {[%clk 0:00:39]} 30. b3 {[%clk 0:00:48]}  Kf6 {[%clk 0:00:39]}
31. Ke2 {[%clk 0:00:48]}  Ke5 {[%clk 0:00:38]} 32. Kd3 {[%clk 0:00:43]}  g5 {[%clk 0:00:36]} 33. Bg8 {[%clk 0:00:43]}  h6 {[%clk 0:00:36]}
34. Bd5 {[%clk 0:00:35]}  Ba3 {[%clk 0:00:37]} 35. Ke3 {[%clk 0:00:33]}  Bc5+ {[%clk 0:00:38]} 36. Kf3 {[%clk 0:00:32]}  h5 {[%clk 0:00:19]}
37. h3 {[%clk 0:00:22]}  e6 {[%clk 0:00:13]} 38. Bc6 {[%clk 0:00:21]}  h4 {[%clk 0:00:12]} 39. gxh4 {[%clk 0:00:20]}  gxh4 {[%clk 0:00:13]}
40. Bd7 {[%clk 0:00:12]}  Ba3 {[%clk 0:00:12]} 41. c4 {[%clk 0:00:09]}  Bb4 {[%clk 0:00:14]} 42. Bc6 {[%clk 0:00:10]}  Be1 {[%clk 0:00:14]}
43. Ke2 {[%clk 0:00:11]}  Bg3 {[%clk 0:00:15]} 44. Kf3 {[%clk 0:00:12]}  Kd4 {[%clk 0:00:14]} 45. a4 {[%clk 0:00:10]}  a5 {[%clk 0:00:14]}
46. Bd7 {[%clk 0:00:10]}  e5 {[%clk 0:00:15]} 47. Be6 {[%clk 0:00:11]}  Kc3 {[%clk 0:00:16]} 48. c5 {[%clk 0:00:12]}  dxc5 {[%clk 0:00:09]}
49. Bc4 {[%clk 0:00:13]}  Kd4 {[%clk 0:00:09]} 50. Bb5 {[%clk 0:00:12]}  Be1 {[%clk 0:00:09]} 51. Bc4 {[%clk 0:00:13]}  Bg3 {[%clk 0:00:10]}
52. Be6 {[%clk 0:00:14]}  Kc3 {[%clk 0:00:11]} 53. Bf7 {[%clk 0:00:16]}  Kd2 {[%clk 0:00:11]} 54. Be6 {[%clk 0:00:15]}  Kc3 {[%clk 0:00:09]}
55. Bd5 {[%clk 0:00:14]}  Kb4 {[%clk 0:00:10]} 56. Bc4 {[%clk 0:00:14]}  Be1 {[%clk 0:00:11]} 57. Kg4 {[%clk 0:00:15]}  Bf2 {[%clk 0:00:10]}
58. Kf5 {[%clk 0:00:16]}  Bg3 {[%clk 0:00:11]} 59. Ke6 {[%clk 0:00:16]}  Bf4 {[%clk 0:00:09]} 60. Kd6 {[%clk 0:00:16]}  Bg3 {[%clk 0:00:06]}
61. Kc6 {[%clk 0:00:17]}  Bf4 {[%clk 0:00:07]} 62. Kxb6 {[%clk 0:00:18]}  Bg3 {[%clk 0:00:08]} 63. Kc6 {[%clk 0:00:13]}  Bf4 {[%clk 0:00:09]}
64. Kd5 {[%clk 0:00:14]}  Bg3 {[%clk 0:00:11]} 65. Ke6 {[%clk 0:00:15]}  Bf4 {[%clk 0:00:12]} 1/2-1/2

[Event "2026 Biel Blitz Open"]
[Site "Biel, CH"]
[Date "2026.07.19"]
[Round "5"]
[White "Kwiatkowski, Maciej"]
[Black "Jaggy, Enzo"]
[Result "1-0"]
[Board "41"]
[TimeControl "180+2"]
[WhiteFideId "1360175"]
[BlackFideId "1344919"]
[WhiteElo "1967"]
[BlackElo "1761"]
[WhiteClock "0:01:29"]
[BlackClock "0:00:05"]
[Variant "Standard"]
[EndDate "2026.07.19"]
[EndTime "13:13:15"]

1. e4 {[%clk 0:03:03]}  e6 {[%clk 0:03:03]} 2. d4 {[%clk 0:03:04]}  d5 {[%clk 0:03:04]} 3. Nd2 {[%clk 0:03:05]}  dxe4 {[%clk 0:03:05]}
4. Nxe4 {[%clk 0:03:06]}  Nd7 {[%clk 0:03:07]} 5. c3 {[%clk 0:03:02]}  Ngf6 {[%clk 0:03:08]} 6. Bd3 {[%clk 0:03:02]}  Be7 {[%clk 0:03:04]}
7. Nf3 {[%clk 0:03:02]}  Nxe4 {[%clk 0:03:05]} 8. Bxe4 {[%clk 0:03:03]}  Nf6 {[%clk 0:03:06]} 9. Bc2 {[%clk 0:03:04]}  c5 {[%clk 0:03:04]}
10. O-O {[%clk 0:03:03]}  cxd4 {[%clk 0:03:05]} 11. Nxd4 {[%clk 0:03:04]}  h6 {[%clk 0:03:01]} 12. Qf3 {[%clk 0:03:01]}  O-O {[%clk 0:02:49]}
13. Re1 {[%clk 0:03:01]}  Re8 {[%clk 0:02:30]} 14. Bf4 {[%clk 0:03:00]}  a6 {[%clk 0:02:29]} 15. Be5 {[%clk 0:02:52]}  Qd5 {[%clk 0:02:19]}
16. Qd3 {[%clk 0:02:39]}  g6 {[%clk 0:02:08]} 17. Qg3 {[%clk 0:02:21]}  Kg7 {[%clk 0:02:00]} 18. Rad1 {[%clk 0:02:12]}  Qa5 {[%clk 0:01:44]}
19. a3 {[%clk 0:02:00]}  Bd7 {[%clk 0:01:27]} 20. Qf4 {[%clk 0:01:55]}  Bc6 {[%clk 0:01:14]} 21. Nxc6 {[%clk 0:01:55]}  bxc6 {[%clk 0:01:15]}
22. Re3 {[%clk 0:01:54]}  Rad8 {[%clk 0:01:12]} 23. Rf3 {[%clk 0:01:47]}  Rxd1+ {[%clk 0:01:13]} 24. Bxd1 {[%clk 0:01:48]}  Qd8 {[%clk 0:01:14]}
25. Bc2 {[%clk 0:01:38]}  a5 {[%clk 0:00:57]} 26. h3 {[%clk 0:01:38]}  h5 {[%clk 0:00:57]} 27. Ba4 {[%clk 0:01:38]}  Rh8 {[%clk 0:00:15]}
28. h4 {[%clk 0:01:36]}  Rh7 {[%clk 0:00:13]} 29. Bxc6 {[%clk 0:01:34]}  Qd1+ {[%clk 0:00:14]} 30. Kh2 {[%clk 0:01:35]}  Qd8 {[%clk 0:00:09]}
31. b4 {[%clk 0:01:29]}  axb4 {[%clk 0:00:05]} 32. axb4 {[%clk 0:01:29]}  Qb6 {[%clk 0:00:00]} 33. b5 {[%clk 0:01:29]}  Qb8 {[%clk 0:00:00]} 1-0

[Event "2026 Biel Blitz Open"]
[Site "Biel, CH"]
[Date "2026.07.19"]
[Round "5"]
[White "Osmani, Xhevdet"]
[Black "Damen, Josephine"]
[Result "1-0"]
[Board "43"]
[TimeControl "180+2"]
[WhiteFideId "22104569"]
[BlackFideId "1074369"]
[WhiteElo "1959"]
[BlackElo "1766"]
[BlackTitle "WCM"]
[WhiteClock "0:01:06"]
[BlackClock "0:00:14"]
[Variant "Standard"]
[EndDate "2026.07.19"]
[EndTime "13:10:14"]

1. d4 {[%clk 0:03:03]}  Nf6 {[%clk 0:03:03]} 2. Bf4 {[%clk 0:03:04]}  g6 {[%clk 0:03:04]} 3. e3 {[%clk 0:03:05]}  Bg7 {[%clk 0:03:05]}
4. h3 {[%clk 0:03:06]}  d6 {[%clk 0:03:06]} 5. Nf3 {[%clk 0:03:07]}  O-O {[%clk 0:03:06]} 6. Be2 {[%clk 0:03:09]}  Nbd7 {[%clk 0:02:57]}
7. c3 {[%clk 0:03:10]}  Re8 {[%clk 0:02:58]} 8. O-O {[%clk 0:03:10]}  c6 {[%clk 0:02:34]} 9. Nbd2 {[%clk 0:03:11]}  e5 {[%clk 0:02:31]}
10. dxe5 {[%clk 0:03:12]}  dxe5 {[%clk 0:02:31]} 11. Bh2 {[%clk 0:03:13]}  Qe7 {[%clk 0:02:26]} 12. Nc4 {[%clk 0:03:13]}  Nd5 {[%clk 0:02:14]}
13. Qc2 {[%clk 0:03:09]}  N7b6 {[%clk 0:01:54]} 14. Na5 {[%clk 0:02:54]}  Kh8 {[%clk 0:01:28]} 15. Rad1 {[%clk 0:02:53]}  f6 {[%clk 0:01:26]}
16. a3 {[%clk 0:02:50]}  Be6 {[%clk 0:01:23]} 17. c4 {[%clk 0:02:47]}  Nc7 {[%clk 0:01:17]} 18. b4 {[%clk 0:02:46]}  Rab8 {[%clk 0:01:01]}
19. Rd2 {[%clk 0:02:37]}  Bf7 {[%clk 0:00:29]} 20. Rfd1 {[%clk 0:02:37]}  Be6 {[%clk 0:00:17]} 21. Nb3 {[%clk 0:02:35]}  Red8 {[%clk 0:00:18]}
22. Nc5 {[%clk 0:02:35]}  Rxd2 {[%clk 0:00:17]} 23. Rxd2 {[%clk 0:02:35]}  Bf7 {[%clk 0:00:18]} 24. a4 {[%clk 0:02:31]}  Be8 {[%clk 0:00:06]}
25. e4 {[%clk 0:02:15]}  Ne6 {[%clk 0:00:07]} 26. Nxe6 {[%clk 0:02:08]}  Qxe6 {[%clk 0:00:08]} 27. a5 {[%clk 0:02:07]}  Nd7 {[%clk 0:00:05]}
28. c5 {[%clk 0:02:08]}  Qe7 {[%clk 0:00:06]} 29. Bc4 {[%clk 0:02:07]}  Bf7 {[%clk 0:00:07]} 30. Rd6 {[%clk 0:02:01]}  Nf8 {[%clk 0:00:08]}
31. Qd3 {[%clk 0:01:53]}  Bxc4 {[%clk 0:00:07]} 32. Qxc4 {[%clk 0:01:53]}  Re8 {[%clk 0:00:06]} 33. Nd2 {[%clk 0:01:48]}  Ne6 {[%clk 0:00:07]}
34. Nb3 {[%clk 0:01:41]}  Nf4 {[%clk 0:00:07]} 35. b5 {[%clk 0:01:30]}  Rd8 {[%clk 0:00:08]} 36. Bxf4 {[%clk 0:01:16]}  exf4 {[%clk 0:00:09]}
37. bxc6 {[%clk 0:01:10]}  bxc6 {[%clk 0:00:06]} 38. Rxc6 {[%clk 0:01:04]}  f3 {[%clk 0:00:04]} 39. g3 {[%clk 0:01:04]}  Qd7 {[%clk 0:00:04]}
40. Rd6 {[%clk 0:01:05]}  Qc7 {[%clk 0:00:03]} 41. Qd5 {[%clk 0:01:00]}  Rxd6 {[%clk 0:00:04]} 42. Qxd6 {[%clk 0:01:01]}  Qxd6 {[%clk 0:00:04]}
43. cxd6 {[%clk 0:01:00]}  f5 {[%clk 0:00:05]} 44. exf5 {[%clk 0:00:58]}  gxf5 {[%clk 0:00:05]} 45. Nc5 {[%clk 0:00:59]}  Bf6 {[%clk 0:00:06]}
46. d7 {[%clk 0:00:58]}  Kg7 {[%clk 0:00:07]} 47. d8=Q {[%clk 0:00:58]}  Bxd8 {[%clk 0:00:08]} 48. Ne6+ {[%clk 0:01:00]}  Kf6 {[%clk 0:00:08]}
49. Nxd8 {[%clk 0:01:01]}  Ke7 {[%clk 0:00:09]} 50. Nc6+ {[%clk 0:01:03]}  Kd6 {[%clk 0:00:10]} 51. Nxa7 {[%clk 0:01:03]}  Kc5 {[%clk 0:00:11]}
52. a6 {[%clk 0:01:04]}  Kb6 {[%clk 0:00:10]} 53. Nb5 {[%clk 0:01:05]}  Kxa6 {[%clk 0:00:13]} 54. Nd6 {[%clk 0:01:06]}  f4 {[%clk 0:00:13]}
55. g4 {[%clk 0:01:05]}  Kb6 {[%clk 0:00:14]} 56. Nc4+ {[%clk 0:01:00]}  Kc7 {[%clk 0:00:15]} 57. Ne5 {[%clk 0:01:02]}  Kd6 {[%clk 0:00:15]}
58. Nxf3 {[%clk 0:01:03]}  Ke6 {[%clk 0:00:16]} 59. Kg2 {[%clk 0:01:04]}  Kf6 {[%clk 0:00:17]} 60. Nd2 {[%clk 0:01:03]}  Kg5 {[%clk 0:00:15]}
61. Kf3 {[%clk 0:01:03]}  Kh4 {[%clk 0:00:14]} 62. Kxf4 {[%clk 0:01:02]}  Kxh3 {[%clk 0:00:15]} 63. f3 {[%clk 0:01:03]}  Kh4 {[%clk 0:00:15]}
64. Ne4 {[%clk 0:01:05]}  h6 {[%clk 0:00:14]} 65. Nf6 {[%clk 0:01:05]}  Kh3 {[%clk 0:00:14]} 66. Ng8 {[%clk 0:01:06]}  Kh4 {[%clk 0:00:14]}
67. Nxh6 {[%clk 0:01:06]} 1-0

[Event "2026 Biel Blitz Open"]
[Site "Biel, CH"]
[Date "2026.07.19"]
[Round "5"]
[White "Tcheau, Alain"]
[Black "Ragios, Konstantinos"]
[Result "0-1"]
[Board "44"]
[TimeControl "180+2"]
[WhiteFideId "1306014"]
[BlackFideId "4210484"]
[WhiteElo "1777"]
[BlackElo "1957"]
[WhiteClock "0:00:32"]
[BlackClock "0:00:25"]
[Variant "Standard"]
[EndDate "2026.07.19"]
[EndTime "13:15:48"]

1. h3 {[%clk 0:03:01]}  e5 {[%clk 0:03:03]} 2. c3 {[%clk 0:03:02]}  Nf6 {[%clk 0:03:02]} 3. d4 {[%clk 0:03:04]}  exd4 {[%clk 0:02:59]}
4. cxd4 {[%clk 0:03:05]}  d5 {[%clk 0:02:58]} 5. Nf3 {[%clk 0:03:06]}  Bf5 {[%clk 0:02:57]} 6. e3 {[%clk 0:03:07]}  c6 {[%clk 0:02:56]}
7. Bd3 {[%clk 0:03:07]}  Bg6 {[%clk 0:02:56]} 8. Nc3 {[%clk 0:03:08]}  Nbd7 {[%clk 0:02:57]} 9. O-O {[%clk 0:03:08]}  Bd6 {[%clk 0:02:55]}
10. Qc2 {[%clk 0:03:08]}  Bxd3 {[%clk 0:02:48]} 11. Qxd3 {[%clk 0:03:08]}  O-O {[%clk 0:02:42]} 12. a3 {[%clk 0:03:09]}  a5 {[%clk 0:02:40]}
13. Bd2 {[%clk 0:03:10]}  Re8 {[%clk 0:02:40]} 14. Rfe1 {[%clk 0:03:11]}  Ne4 {[%clk 0:02:33]} 15. Qc2 {[%clk 0:03:06]}  Qf6 {[%clk 0:02:17]}
16. Nxe4 {[%clk 0:02:56]}  dxe4 {[%clk 0:02:07]} 17. Nh2 {[%clk 0:02:47]}  Qh4 {[%clk 0:01:59]} 18. Bc3 {[%clk 0:02:33]}  Re6 {[%clk 0:01:46]}
19. Qe2 {[%clk 0:02:34]}  Rg6 {[%clk 0:01:41]} 20. Kh1 {[%clk 0:02:32]}  Nf6 {[%clk 0:01:25]} 21. f4 {[%clk 0:02:31]}  Nd5 {[%clk 0:01:21]}
22. Bd2 {[%clk 0:02:18]}  f5 {[%clk 0:01:14]} 23. Rf1 {[%clk 0:02:18]}  Rd8 {[%clk 0:01:07]} 24. Bxa5 {[%clk 0:02:14]}  Rc8 {[%clk 0:01:00]}
25. Be1 {[%clk 0:02:14]}  Qe7 {[%clk 0:01:01]} 26. Bf2 {[%clk 0:02:11]}  Kh8 {[%clk 0:01:01]} 27. g3 {[%clk 0:02:09]}  Qe6 {[%clk 0:00:54]}
28. Rfc1 {[%clk 0:02:09]}  Ra8 {[%clk 0:00:52]} 29. Kg2 {[%clk 0:02:04]}  Qe8 {[%clk 0:00:51]} 30. a4 {[%clk 0:02:03]}  Nb4 {[%clk 0:00:49]}
31. Nf1 {[%clk 0:01:50]}  Nd3 {[%clk 0:00:50]} 32. Rc2 {[%clk 0:01:51]}  Bxf4 {[%clk 0:00:49]} 33. Ra3 {[%clk 0:01:43]}  Bd6 {[%clk 0:00:49]}
34. Rxd3 {[%clk 0:01:39]}  exd3 {[%clk 0:00:49]} 35. Qxd3 {[%clk 0:01:39]}  Qe4+ {[%clk 0:00:49]} 36. Qxe4 {[%clk 0:01:39]}  fxe4 {[%clk 0:00:50]}
37. b3 {[%clk 0:01:35]}  h5 {[%clk 0:00:35]} 38. Nd2 {[%clk 0:01:34]}  Re8 {[%clk 0:00:36]} 39. Nc4 {[%clk 0:01:34]}  Bc7 {[%clk 0:00:36]}
40. h4 {[%clk 0:01:32]}  Kh7 {[%clk 0:00:35]} 41. b4 {[%clk 0:01:31]}  Rf6 {[%clk 0:00:34]} 42. b5 {[%clk 0:01:24]}  Bb8 {[%clk 0:00:34]}
43. Rb2 {[%clk 0:01:14]}  Rc8 {[%clk 0:00:25]} 44. bxc6 {[%clk 0:01:12]}  Rfxc6 {[%clk 0:00:25]} 45. Nb6 {[%clk 0:01:12]}  Rc2 {[%clk 0:00:21]}
46. Rxc2 {[%clk 0:00:56]}  Rxc2 {[%clk 0:00:22]} 47. Kf1 {[%clk 0:00:49]}  Ra2 {[%clk 0:00:22]} 48. Be1 {[%clk 0:00:47]}  Ba7 {[%clk 0:00:22]}
49. Nc8 {[%clk 0:00:46]}  Rxa4 {[%clk 0:00:23]} 50. Nd6 {[%clk 0:00:42]}  Ra3 {[%clk 0:00:19]} 51. Bd2 {[%clk 0:00:39]}  Bb8 {[%clk 0:00:19]}
52. Nxe4 {[%clk 0:00:39]}  b5 {[%clk 0:00:19]} 53. Ke2 {[%clk 0:00:38]}  Ra2 {[%clk 0:00:20]} 54. Kf3 {[%clk 0:00:39]}  Bc7 {[%clk 0:00:19]}
55. Bb4 {[%clk 0:00:40]}  Ba5 {[%clk 0:00:20]} 56. Bc5 {[%clk 0:00:40]}  b4 {[%clk 0:00:21]} 57. Ng5+ {[%clk 0:00:36]}  Kg6 {[%clk 0:00:22]}
58. Ne6 {[%clk 0:00:36]}  b3 {[%clk 0:00:22]} 59. Nf4+ {[%clk 0:00:31]}  Kf7 {[%clk 0:00:23]} 60. Nd3 {[%clk 0:00:31]}  b2 {[%clk 0:00:25]}
61. Nxb2 {[%clk 0:00:32]}  Rxb2 {[%clk 0:00:25]} 0-1

[Event "2026 Biel Blitz Open"]
[Site "Biel, CH"]
[Date "2026.07.19"]
[Round "5"]
[White "Clausen, Martin"]
[Black "Chantrell, Paul"]
[Result "1-0"]
[Board "45"]
[TimeControl "180+2"]
[WhiteFideId "1314882"]
[BlackFideId "451967"]
[WhiteElo "1956"]
[BlackElo "1749"]
[WhiteClock "0:00:40"]
[BlackClock "0:00:03"]
[Variant "Standard"]
[EndDate "2026.07.19"]
[EndTime "13:15:15"]

1. e4 {[%clk 0:03:01]}  e5 {[%clk 0:03:04]} 2. Nf3 {[%clk 0:03:01]}  Nc6 {[%clk 0:03:05]} 3. d4 {[%clk 0:03:01]}  exd4 {[%clk 0:03:05]}
4. Bc4 {[%clk 0:03:02]}  Bc5 {[%clk 0:03:06]} 5. Ng5 {[%clk 0:02:56]}  Nh6 {[%clk 0:03:04]} 6. Nxf7 {[%clk 0:02:56]}  Nxf7 {[%clk 0:03:05]}
7. Bxf7+ {[%clk 0:02:57]}  Kxf7 {[%clk 0:03:05]} 8. Qh5+ {[%clk 0:02:58]}  g6 {[%clk 0:03:07]} 9. Qxc5 {[%clk 0:02:57]}  d6 {[%clk 0:03:06]}
10. Qc4+ {[%clk 0:02:57]}  Be6 {[%clk 0:02:57]} 11. Qe2 {[%clk 0:02:58]}  Rf8 {[%clk 0:02:48]} 12. Bh6 {[%clk 0:02:55]}  Rg8 {[%clk 0:02:45]}
13. O-O {[%clk 0:02:46]}  Ne5 {[%clk 0:02:24]} 14. Qd2 {[%clk 0:01:50]}  Nc6 {[%clk 0:01:55]} 15. f4 {[%clk 0:01:46]}  Ke8 {[%clk 0:01:43]}
16. c3 {[%clk 0:01:45]}  dxc3 {[%clk 0:01:35]} 17. Nxc3 {[%clk 0:01:45]}  Qd7 {[%clk 0:01:20]} 18. Rad1 {[%clk 0:01:46]}  Kd8 {[%clk 0:01:02]}
19. Qe2 {[%clk 0:01:22]}  Bg4 {[%clk 0:00:59]} 20. Qc4 {[%clk 0:01:20]}  Qe6 {[%clk 0:00:45]} 21. Qb5 {[%clk 0:01:06]}  Bxd1 {[%clk 0:00:28]}
22. Qxb7 {[%clk 0:01:06]}  Kd7 {[%clk 0:00:22]} 23. Rxd1 {[%clk 0:01:02]}  Rgb8 {[%clk 0:00:09]} 24. Qa6 {[%clk 0:01:02]}  Rb6 {[%clk 0:00:08]}
25. Qa4 {[%clk 0:00:58]}  Rab8 {[%clk 0:00:04]} 26. b3 {[%clk 0:00:49]}  Kc8 {[%clk 0:00:04]} 27. Nd5 {[%clk 0:00:45]}  Rb5 {[%clk 0:00:04]}
28. Rc1 {[%clk 0:00:42]}  Nd8 {[%clk 0:00:03]} 29. Rxc7# {[%clk 0:00:40]} 1-0

[Event "2026 Biel Blitz Open"]
[Site "Biel, CH"]
[Date "2026.07.19"]
[Round "5"]
[White "Bujes, Aurelien"]
[Black "Jehnichen, Kai"]
[Result "1-0"]
[Board "46"]
[TimeControl "180+2"]
[WhiteFideId "1347179"]
[BlackFideId "24684333"]
[WhiteElo "1741"]
[BlackElo "1952"]
[WhiteClock "0:02:10"]
[BlackClock "0:01:35"]
[Variant "Standard"]
[EndDate "2026.07.19"]
[EndTime "13:03:34"]

1. e4 {[%clk 0:03:03]}  e5 {[%clk 0:03:03]} 2. Nf3 {[%clk 0:03:03]}  Nc6 {[%clk 0:03:04]} 3. Bc4 {[%clk 0:03:04]}  Nf6 {[%clk 0:03:04]}
4. d3 {[%clk 0:03:03]}  d5 {[%clk 0:03:03]} 5. exd5 {[%clk 0:03:00]}  Nxd5 {[%clk 0:03:04]} 6. O-O {[%clk 0:02:58]}  Be7 {[%clk 0:02:57]}
7. Re1 {[%clk 0:02:57]}  Bg4 {[%clk 0:02:57]} 8. h3 {[%clk 0:02:55]}  Bh5 {[%clk 0:02:28]} 9. g4 {[%clk 0:02:56]}  Bg6 {[%clk 0:02:29]}
10. Nxe5 {[%clk 0:02:56]}  Qd6 {[%clk 0:02:13]} 11. Nxg6 {[%clk 0:02:54]}  hxg6 {[%clk 0:02:14]} 12. Qf3 {[%clk 0:02:53]}  O-O-O {[%clk 0:01:59]}
13. Nc3 {[%clk 0:02:50]}  Ndb4 {[%clk 0:01:54]} 14. Nb5 {[%clk 0:02:33]}  Qf6 {[%clk 0:01:36]} 15. Qg3 {[%clk 0:02:16]}  a6 {[%clk 0:01:35]}
16. Qxc7# {[%clk 0:02:10]} 1-0

[Event "2026 Biel Blitz Open"]
[Site "Biel, CH"]
[Date "2026.07.19"]
[Round "5"]
[White "Havolli, Daut"]
[Black "Vedant Nayudu"]
[Result "0-1"]
[Board "47"]
[TimeControl "180+2"]
[WhiteFideId "1315200"]
[BlackFideId "33369780"]
[WhiteElo "1950"]
[BlackElo "1732"]
[WhiteClock "0:01:11"]
[BlackClock "0:00:06"]
[Variant "Standard"]
[EndDate "2026.07.19"]
[EndTime "13:08:04"]

1. d4 {[%clk 0:03:03]}  d5 {[%clk 0:03:04]} 2. Bf4 {[%clk 0:03:04]}  c5 {[%clk 0:03:05]} 3. e3 {[%clk 0:03:02]}  cxd4 {[%clk 0:03:06]}
4. exd4 {[%clk 0:03:03]}  Nc6 {[%clk 0:03:07]} 5. Nc3 {[%clk 0:03:03]}  a6 {[%clk 0:03:06]} 6. Qd2 {[%clk 0:03:03]}  Bf5 {[%clk 0:03:06]}
7. Bd3 {[%clk 0:03:01]}  Bxd3 {[%clk 0:02:57]} 8. Qxd3 {[%clk 0:03:02]}  Nf6 {[%clk 0:02:56]} 9. Nge2 {[%clk 0:02:54]}  e6 {[%clk 0:02:57]}
10. h4 {[%clk 0:02:46]}  Bd6 {[%clk 0:02:48]} 11. Bg5 {[%clk 0:02:43]}  h6 {[%clk 0:02:49]} 12. Be3 {[%clk 0:02:43]}  Ng4 {[%clk 0:02:46]}
13. O-O-O {[%clk 0:02:36]}  Nxe3 {[%clk 0:02:46]} 14. fxe3 {[%clk 0:02:37]}  Qa5 {[%clk 0:02:31]} 15. Kb1 {[%clk 0:02:34]}  O-O-O {[%clk 0:02:27]}
16. Nc1 {[%clk 0:02:31]}  Kb8 {[%clk 0:02:08]} 17. g4 {[%clk 0:02:28]}  Bb4 {[%clk 0:02:04]} 18. Nb3 {[%clk 0:02:13]}  Qc7 {[%clk 0:01:52]}
19. g5 {[%clk 0:02:10]}  hxg5 {[%clk 0:01:41]} 20. hxg5 {[%clk 0:02:11]}  Qe7 {[%clk 0:01:17]} 21. g6 {[%clk 0:02:02]}  fxg6 {[%clk 0:01:11]}
22. Qxg6 {[%clk 0:01:58]}  Bxc3 {[%clk 0:01:12]} 23. bxc3 {[%clk 0:01:59]}  Na7 {[%clk 0:00:56]} 24. Nc5 {[%clk 0:01:53]}  Nb5 {[%clk 0:00:38]}
25. Kb2 {[%clk 0:01:37]}  Rxh1 {[%clk 0:00:13]} 26. Rxh1 {[%clk 0:01:38]}  Re8 {[%clk 0:00:06]} 27. Rh7 {[%clk 0:01:36]}  Rg8 {[%clk 0:00:04]}
28. Qxe6 {[%clk 0:01:35]}  Qxe6 {[%clk 0:00:04]} 29. Nxe6 {[%clk 0:01:36]}  g5 {[%clk 0:00:04]} 30. Kb3 {[%clk 0:01:16]}  g4 {[%clk 0:00:05]}
31. Rg7 {[%clk 0:01:10]}  Rxg7 {[%clk 0:00:05]} 32. Nxg7 {[%clk 0:01:11]}  g3 {[%clk 0:00:06]} 0-1